fUST/lending_fUST_20250627
["ID","MTS","AMOUNT","RATE_DAILY","PERIOD"]
[368040172,1751003438726,-460.0,0.00019178,2]
[368040173,1751003438735,-460.0,0.00019178,2]
[368040174,1751003438744,-853.31,0.00019178,2]
[368040175,1751003438753,-460.0,0.00019178,2]
[368040176,1751003438763,-460.0,0.00019178,2]
[368040177,1751003438772,-460.0,0.00019178,2]
[368040178,1751003438782,-460.0,0.00019178,2]
[368040179,1751003438791,-460.0,0.00019178,2]
[368040180,1751003438801,-460.0,0.00019178,2]
[368040181,1751003438810,-460.0,0.00019178,2]
[368040182,1751003438819,-460.0,0.00019178,2]
[368040183,1751003438829,-460.0,0.00019178,2]
[368040184,1751003438839,-460.0,0.00019178,2]
[368040185,1751003438849,-601.85523965,0.00019178,2]
[368040186,1751003438859,-460.0,0.00019178,2]
[368040187,1751003438870,-460.0,0.00019178,2]
[368040188,1751003438879,-460.0,0.00019178,2]
[368040189,1751003438889,-322.40624098,0.00019178,2]
[368040190,1751003438898,-163.67,0.00019178,2]
[368040191,1751003438908,-460.0,0.00019178,2]
[368040192,1751003438918,-460.0,0.00019178,2]
[368040193,1751003438929,-460.0,0.00019178,2]
[368040194,1751003438939,-460.0,0.00019178,2]
[368040195,1751003438948,-460.0,0.00019178,2]
[368040196,1751003438958,-460.0,0.00019178,2]
[368040197,1751003438967,-460.0,0.00019178,2]
[368040198,1751003438977,-460.0,0.00019178,2]
[368040199,1751003438986,-460.0,0.00019178,2]
[368040200,1751003438995,-460.0,0.00019178,2]
[368040201,1751003439004,-460.0,0.00019178,2]
[368040202,1751003439014,-460.0,0.00019178,2]
[368040203,1751003439024,-460.0,0.00019178,2]
[368040204,1751003439034,-460.0,0.00019178,2]
[368040205,1751003439043,-460.0,0.00019178,2]
[368040206,1751003439052,-460.0,0.00019178,2]
[368040207,1751003439062,-460.0,0.00019178,2]
[368040208,1751003439071,-460.0,0.00019178,2]
[368040209,1751003439080,-460.0,0.00019178,2]
[368040210,1751003439089,-460.0,0.00019178,2]
[368040211,1751003439099,-460.0,0.00019178,2]
[368040212,1751003439108,-519.19,0.00019178,2]
[368040213,1751003439116,-460.0,0.00019178,2]
[368040214,1751003439126,-460.0,0.00019178,2]
[368040215,1751003439136,-460.0,0.00019178,2]
[368040216,1751003439146,-460.0,0.00019178,2]
[368040217,1751003439155,-460.0,0.00019178,2]
[368040218,1751003439166,-461.56515703,0.00019178,2]
[368040219,1751003439175,-460.0,0.00019178,2]
[368040220,1751003439184,-460.0,0.00019178,2]
[368040221,1751003439193,-460.0,0.00019178,2]
[368040222,1751003439202,-460.0,0.00019178,2]
[368040223,1751003439211,-460.0,0.00019178,2]
[368040224,1751003439220,-460.0,0.00019178,2]
[368040225,1751003439229,-460.0,0.00019178,2]
[368040226,1751003439238,-460.0,0.00019178,2]
[368040227,1751003439247,-803.5,0.00019178,2]
[368040228,1751003439257,-460.0,0.00019178,2]
[368040229,1751003439266,-460.0,0.00019178,2]
[368040230,1751003439276,-460.0,0.00019178,2]
[368040231,1751003439285,-460.0,0.00019178,2]
[368040232,1751003439294,-180.94503726,0.00019178,2]
[368040233,1751003439304,-484.1,0.00019178,2]
[368040234,1751003439313,-460.0,0.00019178,2]
[368040235,1751003439322,-596.3755632,0.00019178,2]
[368040236,1751003439331,-460.0,0.00019178,2]
[368040237,1751003439341,-460.0,0.00019178,2]
[368040238,1751003439351,-460.0,0.00019178,2]
[368040239,1751003439360,-460.0,0.00019178,2]
[368040240,1751003439369,-460.0,0.00019178,2]
[368040241,1751003439379,-460.0,0.00019178,2]
[368040242,1751003439389,-460.0,0.00019178,2]
[368040243,1751003439400,-460.0,0.00019178,2]
[368040244,1751003439409,-460.0,0.00019178,2]
[368040245,1751003439418,-575.49,0.00019178,2]
[368040246,1751003439428,-460.0,0.00019178,2]
[368040247,1751003439438,-460.0,0.00019178,2]
[368040248,1751003439447,-460.0,0.00019178,2]
[368040249,1751003439456,-501.59,0.00019178,2]
[368040250,1751003439465,-4177.53,0.00019178,2]
[368040251,1751003439474,-460.0,0.00019178,2]
[368040252,1751003439484,-460.0,0.00019178,2]
[368040253,1751003439493,-1823.15,0.00019178,2]
[368040254,1751003439502,-460.0,0.00019178,2]
[368040255,1751003439511,-460.0,0.00019178,2]
[368040256,1751003439520,-2208.11,0.00019178,2]
[368040257,1751003439530,-460.0,0.00019178,2]
[368040258,1751003439539,-460.0,0.00019178,2]
[368040259,1751003439548,-460.0,0.00019178,2]
[368040260,1751003439558,-460.0,0.00019178,2]
[368040261,1751003439567,-460.0,0.00019178,2]
[368040262,1751003439577,-565.24,0.00019178,2]
[368040263,1751003439586,-460.0,0.00019178,2]
[368040264,1751003439595,-880.74,0.00019178,2]
[368040265,1751003439606,-611.48,0.00019178,2]
[368040266,1751003439616,-1105.33,0.00019178,2]
[368040267,1751003439627,-1337.72,0.00019178,2]
[368040268,1751003439638,-460.0,0.00019178,2]
[368040269,1751003439649,-156.36377622,0.00019178,2]
[368040270,1751003439660,-460.0,0.00019178,2]
[368040271,1751003439670,-460.0,0.00019178,2]
[368040272,1751003439680,-460.0,0.00019178,2]
[368040273,1751003439689,-543.97492755,0.00019178,2]
[368040274,1751003439698,-460.65578558,0.00019178,2]
[368040275,1751003439707,-460.0,0.00019178,2]
[368040276,1751003439717,-460.0,0.00019178,2]
[368040277,1751003439726,-884.36,0.00019178,2]
[368040278,1751003439736,-695.37,0.00019178,2]
[368040279,1751003439744,-178.57979428,0.00019178,2]
[368040282,1751003439888,-460.0,0.00019178,2]
[368040284,1751003439897,-2061.18,0.00019178,2]
[368040286,1751003439907,-741.29,0.00019178,2]
[368040288,1751003439917,-460.0,0.00019178,2]
[368040290,1751003439927,-527.72,0.00019178,2]
[368040292,1751003439936,-460.0,0.00019178,2]
[368040294,1751003439946,-2497.03,0.00019178,2]
[368040296,1751003439955,-460.0,0.00019178,2]
[368040298,1751003439964,-440.0,0.00019178,2]
[368040300,1751003439973,-5747.25,0.00019178,2]
[368040302,1751003439983,-460.0,0.00019178,2]
[368040304,1751003439992,-460.0,0.00019178,2]
[368040306,1751003440002,-460.0,0.00019178,2]
[368040308,1751003440011,-460.0,0.00019178,2]
[368040310,1751003440020,-460.0,0.00019178,2]
[368040312,1751003440029,-460.0,0.00019178,2]
[368040314,1751003440039,-460.0,0.00019178,2]
[368040316,1751003440048,-1610.13,0.00019178,2]
[368040318,1751003440057,-460.0,0.00019178,2]
[368040320,1751003440066,-853.05,0.00019178,2]
[368040322,1751003440075,-2661.97,0.00019178,2]
[368040324,1751003440085,-460.0,0.00019178,2]
[368040326,1751003440095,-2452.25,0.00019178,2]
[368040328,1751003440104,-255.82,0.00019178,2]
[368040330,1751003440114,-731.76,0.00019178,2]
[368040332,1751003440123,-759.76,0.00019178,2]
[368040334,1751003440132,-460.0,0.00019178,2]
[368040336,1751003440142,-460.0,0.00019178,2]
[368040338,1751003440152,-460.0,0.00019178,2]
[368040340,1751003440161,-460.0,0.00019178,2]
[368040342,1751003440171,-460.0,0.00019178,2]
[368040344,1751003440181,-460.0,0.00019178,2]
[368040346,1751003440190,-460.0,0.00019178,2]
[368040348,1751003440199,-460.0,0.00019178,2]
[368040350,1751003440208,-460.0,0.00019178,2]
[368040352,1751003440217,-460.0,0.00019178,2]
[368040354,1751003440226,-460.0,0.00019178,2]
[368040356,1751003440235,-460.0,0.00019178,2]
[368040358,1751003440244,-460.0,0.00019178,2]
[368040360,1751003440254,-460.0,0.00019178,2]
[368040362,1751003440263,-989.19,0.00019178,2]
[368040364,1751003440272,-500.0,0.00019178,2]
[368040366,1751003440282,-460.0,0.00019178,2]
[368040368,1751003440291,-500.0,0.00019178,2]
[368040370,1751003440301,-500.0,0.00019178,2]
[368040372,1751003440310,-500.0,0.00019178,2]
[368040374,1751003440320,-500.0,0.00019178,2]
[368040376,1751003440330,-500.0,0.00019178,2]
[368040378,1751003440340,-2131.7,0.00019178,2]
[368040380,1751003440351,-754.27,0.00019178,2]
[368040382,1751003440360,-460.0,0.00019178,2]
[368040384,1751003440369,-460.0,0.00019178,2]
[368040386,1751003440378,-460.0,0.00019178,2]
[368040389,1751003440388,-1612.45,0.00019178,2]
[368040391,1751003440401,-593.45,0.00019178,2]
[368040393,1751003440410,-460.0,0.00019178,2]
[368040395,1751003440420,-460.0,0.00019178,2]
[368040396,1751003440430,-460.0,0.00019178,2]
[368040398,1751003440441,-2403.88,0.00019178,2]
[368040400,1751003440450,-460.0,0.00019178,2]
[368040402,1751003440459,-460.0,0.00019178,2]
[368040405,1751003440469,-460.0,0.00019178,2]
[368040407,1751003440478,-1594.99,0.00019178,2]
[368040408,1751003440487,-811.41,0.00019178,2]
[368040410,1751003440496,-460.0,0.00019178,2]
[368040413,1751003440506,-1146.9,0.00019178,2]
[368040415,1751003440515,-1579.94,0.00019178,2]
[368040416,1751003440524,-460.0,0.00019178,2]
[368040419,1751003440533,-460.0,0.00019178,2]
[368040421,1751003440543,-177.935129,0.00019178,2]
[368040422,1751003440552,-500.0,0.0001945,2]
[368040424,1751003440561,-500.0,0.00019451,2]
[368040426,1751003440570,-500.0,0.00019451,2]
[368040428,1751003440579,-500.0,0.00019451,2]
[368040430,1751003440589,-190.76618838,0.00019451,2]
[368040432,1751003440598,-460.0,0.00019452,2]
[368040435,1751003440607,-460.0,0.00019452,2]
[368040437,1751003440616,-460.0,0.00019452,2]
[368040439,1751003440625,-540.0,0.00019452,2]
[368040441,1751003440634,-151.21395971,0.00019452,2]
[368040443,1751003440643,-460.0,0.00019452,2]
[368040445,1751003440651,-460.0,0.00019452,2]
[368040448,1751003440671,-460.0,0.00019452,2]
[368040450,1751003440681,-430.0,0.00019452,2]
[368040452,1751003440691,-419.03673368,0.00019452,2]
[368040454,1751003440700,-154.46,0.00019452,2]
[368040456,1751003440710,-460.0,0.00019452,2]
[368040458,1751003440720,-460.0,0.00019452,2]
[368040461,1751003440729,-460.0,0.00019452,2]
[368040463,1751003440739,-643.06,0.00019452,2]
[368040465,1751003440748,-460.0,0.00019452,2]
[368040467,1751003440758,-460.0,0.00019452,2]
[368040469,1751003440767,-460.0,0.00019452,2]
[368040471,1751003440777,-460.0,0.00019452,2]
[368040473,1751003440787,-460.0,0.00019452,2]
[368040475,1751003440796,-754.87,0.00019452,2]
[368040477,1751003440806,-296.48581044,0.00019452,2]
[368040479,1751003440815,-460.0,0.00019452,2]
[368040481,1751003440825,-460.0,0.00019452,2]
[368040483,1751003440834,-460.0,0.00019452,2]
[368040485,1751003440843,-460.0,0.00019452,2]
[368040487,1751003440853,-460.0,0.00019452,2]
[368040489,1751003440862,-853.31,0.00019452,2]
[368040491,1751003440872,-460.0,0.00019452,2]
[368040493,1751003440882,-460.0,0.00019452,2]
[368040495,1751003440891,-460.0,0.00019452,2]
[368040497,1751003440901,-460.0,0.00019452,2]
[368040499,1751003440910,-170.99361988,0.00019452,2]
[368040501,1751003440921,-460.0,0.00019452,2]
[368040503,1751003440931,-460.0,0.00019452,2]
[368040505,1751003440941,-266.65,0.00019452,2]
[368040507,1751003440950,-460.0,0.00019452,2]
[368040509,1751003440960,-460.0,0.00019452,2]
[368040511,1751003440969,-463.24,0.00019452,2]
[368040513,1751003440978,-460.0,0.00019452,2]
[368040515,1751003440988,-464.93385656,0.00019452,2]
[368040517,1751003440997,-460.0,0.00019452,2]
[368040519,1751003441007,-460.0,0.00019452,2]
[368040521,1751003441016,-460.0,0.00019452,2]
[368040523,1751003441025,-460.0,0.00019452,2]
[368040525,1751003441035,-460.0,0.00019452,2]
[368040527,1751003441044,-460.0,0.00019452,2]
[368040529,1751003441054,-460.0,0.00019452,2]
[368040531,1751003441063,-460.0,0.00019452,2]
[368040533,1751003441072,-460.0,0.00019452,2]
[368040535,1751003441082,-519.19,0.00019452,2]
[368040537,1751003441092,-179.82199852,0.00019452,2]
[368040539,1751003441101,-460.0,0.00019452,2]
[368040541,1751003441110,-460.0,0.00019452,2]
[368040543,1751003441120,-460.0,0.00019452,2]
[368040545,1751003441129,-460.0,0.00019452,2]
[368040547,1751003441138,-557.09271926,0.00019452,2]
[368040549,1751003441147,-803.5,0.00019452,2]
[368040551,1751003441157,-460.0,0.00019452,2]
[368040553,1751003441167,-460.0,0.00019452,2]
[368040555,1751003441176,-484.1,0.00019452,2]
[368040557,1751003441185,-460.0,0.00019452,2]
[368040559,1751003441194,-235.16,0.00019452,2]
[368040561,1751003441203,-460.0,0.00019452,2]
[368040563,1751003441212,-460.0,0.00019452,2]
[368040565,1751003441221,-460.0,0.00019452,2]
[368040567,1751003441231,-460.0,0.00019452,2]
[368040569,1751003441240,-460.0,0.00019452,2]
[368040571,1751003441249,-575.49,0.00019452,2]
[368040573,1751003441259,-460.0,0.00019452,2]
[368040575,1751003441271,-460.0,0.00019452,2]
[368040578,1751003441284,-501.59,0.00019452,2]
[368040579,1751003441293,-4177.53,0.00019452,2]
[368040581,1751003441303,-460.0,0.00019452,2]
[368040583,1751003441312,-1823.15,0.00019452,2]
[368040585,1751003441322,-460.0,0.00019452,2]
[368040587,1751003441331,-223.12521175,0.00019452,2]
[368040591,1751003441351,-2208.11,0.00019452,2]
[368040593,1751003441365,-460.0,0.00019452,2]
[368040595,1751003441378,-460.0,0.00019452,2]
[368040598,1751003441393,-460.0,0.00019452,2]
[368040600,1751003441406,-460.0,0.00019452,2]
[368040602,1751003441417,-565.24,0.00019452,2]
[368040604,1751003441428,-880.74,0.00019452,2]
[368040607,1751003441440,-611.48,0.00019452,2]
[368040609,1751003441452,-1105.33,0.00019452,2]
[368040611,1751003441464,-1337.72,0.00019452,2]
[368040614,1751003441476,-460.0,0.00019452,2]
[368040616,1751003441488,-460.0,0.00019452,2]
[368040618,1751003441499,-460.0,0.00019452,2]
[368040620,1751003441511,-460.0,0.00019452,2]
[368040622,1751003441523,-460.0,0.00019452,2]
[368040625,1751003441535,-884.36,0.00019452,2]
[368040627,1751003441547,-695.37,0.00019452,2]
[368040630,1751003441560,-2061.18,0.00019452,2]
[368040632,1751003441572,-741.29,0.00019452,2]
[368040634,1751003441584,-346.66027575,0.00019452,2]
[368040636,1751003441595,-527.72,0.00019452,2]
[368040638,1751003441606,-2497.03,0.00019452,2]
[368040641,1751003441621,-460.0,0.00019452,2]
[368040643,1751003441633,-5747.25,0.00019452,2]
[368040645,1751003441645,-460.0,0.00019452,2]
[368040648,1751003441657,-332.28,0.00019452,2]
[368040650,1751003441669,-460.0,0.00019452,2]
[368040652,1751003441681,-460.0,0.00019452,2]
[368040654,1751003441692,-460.0,0.00019452,2]
[368040657,1751003441705,-460.0,0.00019452,2]
[368040659,1751003441716,-460.0,0.00019452,2]
[368040661,1751003441727,-1610.13,0.00019452,2]
[368040663,1751003441737,-460.0,0.00019452,2]
[368040665,1751003441749,-853.05,0.00019452,2]
[368040668,1751003441759,-2661.97,0.00019452,2]
[368040670,1751003441771,-2452.25,0.00019452,2]
[368040672,1751003441783,-731.76,0.00019452,2]
[368040674,1751003441794,-759.76,0.00019452,2]
[368040677,1751003441807,-412.62592919,0.00019452,2]
[368040679,1751003441818,-460.0,0.00019452,2]
[368040681,1751003441831,-460.0,0.00019452,2]
[368040683,1751003441843,-460.0,0.00019452,2]
[368040686,1751003441859,-460.0,0.00019452,2]
[368040688,1751003441873,-460.0,0.00019452,2]
[368040690,1751003441886,-460.0,0.00019452,2]
[368040693,1751003441896,-989.19,0.00019452,2]
[368040695,1751003441907,-460.0,0.00019452,2]
[368040697,1751003441917,-2131.7,0.00019452,2]
[368040699,1751003441927,-754.27,0.00019452,2]
[368040701,1751003441938,-460.0,0.00019452,2]
[368040703,1751003441948,-460.0,0.00019452,2]
[368040705,1751003441960,-1612.45,0.00019452,2]
[368040708,1751003441973,-593.45,0.00019452,2]
[368040710,1751003441984,-460.0,0.00019452,2]
[368040712,1751003441996,-460.0,0.00019452,2]
[368040714,1751003442007,-2403.88,0.00019452,2]
[368040716,1751003442017,-460.0,0.00019452,2]
[368040718,1751003442028,-460.0,0.00019452,2]
[368040721,1751003442039,-460.0,0.00019452,2]
[368040723,1751003442050,-1594.99,0.00019452,2]
[368040725,1751003442063,-811.41,0.00019452,2]
[368040727,1751003442073,-1146.9,0.00019452,2]
[368040729,1751003442083,-1579.94,0.00019452,2]
[368040731,1751003442094,-460.0,0.00019452,2]
[368040732,1751003442103,-460.0,0.00019452,2]
[368040733,1751003442113,-460.0,0.00019726,2]
[368040734,1751003442124,-460.0,0.00019726,2]
[368040735,1751003442135,-460.0,0.00019726,2]
[368040736,1751003442145,-460.0,0.00019726,2]
[368040737,1751003442155,-460.0,0.00019726,2]
[368040738,1751003442167,-460.0,0.00019726,2]
[368040739,1751003442179,-460.0,0.00019726,2]
[368040740,1751003442190,-460.0,0.00019726,2]
[368040741,1751003442201,-460.0,0.00019726,2]
[368040742,1751003442212,-643.06,0.00019726,2]
[368040743,1751003442224,-460.0,0.00019726,2]
[368040744,1751003442235,-460.0,0.00019726,2]
[368040745,1751003442246,-460.0,0.00019726,2]
[368040747,1751003442256,-460.0,0.00019726,2]
[368040749,1751003442267,-460.0,0.00019726,2]
[368040751,1751003442278,-754.87,0.00019726,2]
[368040753,1751003442291,-460.0,0.00019726,2]
[368040755,1751003442302,-356.76,0.00019726,2]
[368040758,1751003442314,-460.0,0.00019726,2]
[368040760,1751003442325,-460.0,0.00019726,2]
[368040762,1751003442337,-853.31,0.00019726,2]
[368040764,1751003442349,-460.0,0.00019726,2]
[368040767,1751003442364,-460.0,0.00019726,2]
[368040769,1751003442375,-460.0,0.00019726,2]
[368040771,1751003442386,-460.0,0.00019726,2]
[368040773,1751003442400,-297.9,0.00019726,2]
[368040776,1751003442414,-460.0,0.00019726,2]
[368040778,1751003442425,-460.0,0.00019726,2]
[368040780,1751003442437,-460.0,0.00019726,2]
[368040782,1751003442447,-460.0,0.00019726,2]
[368040784,1751003442458,-460.0,0.00019726,2]
[368040786,1751003442469,-460.0,0.00019726,2]
[368040788,1751003442480,-519.19,0.00019726,2]
[368040791,1751003442490,-460.0,0.00019726,2]
[368040794,1751003442501,-460.0,0.00019726,2]
[368040797,1751003442513,-460.0,0.00019726,2]
[368040799,1751003442523,-803.5,0.00019726,2]
[368040801,1751003442534,-460.0,0.00019726,2]
[368040803,1751003442545,-421.05,0.00019726,2]
[368040805,1751003442555,-484.1,0.00019726,2]
[368040807,1751003442567,-460.0,0.00019726,2]
[368040809,1751003442577,-460.0,0.00019726,2]
[368040811,1751003442588,-460.0,0.00019726,2]
[368040813,1751003442598,-460.0,0.00019726,2]
[368040816,1751003442609,-460.0,0.00019726,2]
[368040820,1751003442621,-460.0,0.00019726,2]
[368040823,1751003442631,-575.49,0.00019726,2]
[368040827,1751003442642,-460.0,0.00019726,2]
[368040829,1751003442652,-460.0,0.00019726,2]
[368040832,1751003442663,-501.59,0.00019726,2]
[368040835,1751003442674,-4177.53,0.00019726,2]
[368040838,1751003442685,-325.34502338,0.00019726,2]
[368040839,1751003442695,-1823.15,0.00019726,2]
[368040840,1751003442706,-460.0,0.00019726,2]
[368040841,1751003442717,-2208.11,0.00019726,2]
[368040843,1751003442727,-460.0,0.00019726,2]
[368040844,1751003442738,-460.0,0.00019726,2]
[368040845,1751003442748,-460.0,0.00019726,2]
[368040846,1751003442764,-460.0,0.00019726,2]
[368040847,1751003442774,-565.24,0.00019726,2]
[368040849,1751003442785,-880.74,0.00019726,2]
[368040850,1751003442796,-611.48,0.00019726,2]
[368040851,1751003442806,-1105.33,0.00019726,2]
[368040852,1751003442817,-1337.72,0.00019726,2]
[368040853,1751003442828,-460.0,0.00019726,2]
[368040854,1751003442838,-460.0,0.00019726,2]
[368040855,1751003442848,-460.0,0.00019726,2]
[368040856,1751003442859,-460.0,0.00019726,2]
[368040857,1751003442870,-460.0,0.00019726,2]
[368040858,1751003442880,-884.36,0.00019726,2]
[368040859,1751003442891,-695.37,0.00019726,2]
[368040860,1751003442902,-2061.18,0.00019726,2]
[368040861,1751003442912,-741.29,0.00019726,2]
[368040862,1751003442923,-527.72,0.00019726,2]
[368040863,1751003442935,-2497.03,0.00019726,2]
[368040864,1751003442946,-460.0,0.00019726,2]
[368040865,1751003442957,-5747.25,0.00019726,2]
[368040866,1751003442967,-460.0,0.00019726,2]
[368040867,1751003442979,-460.0,0.00019726,2]
[368040868,1751003442991,-281.88272818,0.00019726,2]
[368040869,1751003443002,-460.0,0.00019726,2]
[368040870,1751003443014,-460.0,0.00019726,2]
[368040872,1751003443027,-460.0,0.00019726,2]
[368040875,1751003443039,-1610.13,0.00019726,2]
[368040876,1751003443050,-460.0,0.00019726,2]
[368040877,1751003443186,-853.05,0.00019726,2]
[368040878,1751003443238,-2661.97,0.00019726,2]
[368040879,1751003443249,-2452.25,0.00019726,2]
[368040880,1751003443258,-759.76,0.00019726,2]
[368040881,1751003443267,-731.76,0.00019726,2]
[368040882,1751003443276,-460.0,0.00019726,2]
[368040883,1751003443285,-460.0,0.00019726,2]
[368040884,1751003443295,-460.0,0.00019726,2]
[368040886,1751003443304,-397.38,0.00019726,2]
[368040887,1751003443313,-166.46,0.00019726,2]
[368040888,1751003443323,-460.0,0.00019726,2]
[368040889,1751003443333,-989.19,0.00019726,2]
[368040890,1751003443342,-460.0,0.00019726,2]
[368040892,1751003443351,-2131.7,0.00019726,2]
[368040893,1751003443360,-460.0,0.00019726,2]
[368040895,1751003443370,-754.27,0.00019726,2]
[368040896,1751003443379,-460.0,0.00019726,2]
[368040897,1751003443388,-1612.45,0.00019726,2]
[368040898,1751003443408,-593.45,0.00019726,2]
[368040899,1751003443418,-460.0,0.00019726,2]
[368040900,1751003443428,-460.0,0.00019726,2]
[368040901,1751003443437,-2403.88,0.00019726,2]
[368040902,1751003443447,-460.0,0.00019726,2]
[368040903,1751003443456,-460.0,0.00019726,2]
[368040904,1751003443467,-1594.99,0.00019726,2]
[368040905,1751003443477,-811.41,0.00019726,2]
[368040906,1751003443487,-1146.9,0.00019726,2]
[368040907,1751003443496,-1579.94,0.00019726,2]
[368040908,1751003443506,-460.0,0.00019726,2]
[368040909,1751003443516,-460.0,0.00019726,2]
[368040910,1751003443526,-500.36063158,0.00019726,2]
[368040911,1751003443536,-500.0,0.00019726,2]
[368040912,1751003443545,-500.0,0.00019726,2]
[368040913,1751003443555,-500.81995879,0.00019729,2]
[368040914,1751003443566,-500.0,0.00019742,2]
[368040915,1751003443575,-500.0,0.00019742,2]
[368040916,1751003443585,-500.0,0.00019742,2]
[368040917,1751003443595,-500.54053299,0.00019742,2]
[368040918,1751003443604,-500.85840275,0.00019742,2]
[368040919,1751003443614,-500.0,0.00019742,2]
[368040920,1751003443624,-500.0,0.00019742,2]
[368040921,1751003443634,-500.0,0.00019742,2]
[368040922,1751003443644,-500.0,0.00019742,2]
[368040923,1751003443654,-500.75103326,0.00019742,2]
[368040924,1751003443663,-501.04307256,0.00019742,2]
[368040925,1751003443673,-500.0,0.00019748,2]
[368040926,1751003443683,-500.0,0.00019754,2]
[368040927,1751003443692,-501.01939852,0.00019754,2]
[368040928,1751003443702,-500.0,0.00019754,2]
[368040929,1751003443712,-160.46873652,0.00019754,2]
[368040930,1751003443721,-500.0,0.00019762,2]
[368040931,1751003443733,-500.0,0.00019765,2]
[368040932,1751003443742,-501.04519411,0.00019765,2]
[368040933,1751003443752,-500.0,0.00019765,2]
[368040934,1751003443763,-500.0,0.00019765,2]
[368040935,1751003443773,-500.0,0.00019776,2]
[368040936,1751003443783,-500.0,0.00019776,2]
[368040937,1751003443793,-500.77727154,0.00019776,2]
[368040938,1751003443803,-501.00720285,0.000198,2]
[368040939,1751003443812,-500.0,0.000198,2]
[368040940,1751003443822,-500.0,0.00019868,2]
[368040941,1751003443832,-500.0,0.00019868,2]
[368040942,1751003443842,-500.0,0.00019876,2]
[368040943,1751003443853,-500.0,0.00019876,2]
[368040944,1751003443863,-500.51236361,0.00019876,2]
[368040945,1751003443873,-460.0,0.0002,2]
[368040946,1751003443883,-591.6737247,0.0002,2]
[368040947,1751003443893,-580.0,0.0002,2]
[368040948,1751003443903,-205.49316157,0.0002,2]
[368040949,1751003443913,-460.0,0.0002,2]
[368040950,1751003443922,-539.98,0.0002,2]
[368040951,1751003443932,-460.0,0.0002,2]
[368040952,1751003443942,-643.06,0.0002,2]
[368040953,1751003443952,-460.0,0.0002,2]
[368040954,1751003443961,-460.0,0.0002,2]
[368040955,1751003443971,-754.87,0.0002,2]
[368040956,1751003443980,-460.0,0.0002,2]
[368040957,1751003443990,-447.95191384,0.0002,2]
[368040958,1751003444000,-853.31,0.0002,2]
[368040959,1751003444010,-460.0,0.0002,2]
[368040960,1751003444019,-460.0,0.0002,2]
[368040961,1751003444029,-460.0,0.0002,2]
[368040962,1751003444038,-460.0,0.0002,2]
[368040963,1751003444048,-460.0,0.0002,2]
[368040964,1751003444057,-460.0,0.0002,2]
[368040965,1751003444067,-460.0,0.0002,2]
[368040966,1751003444076,-404.9,0.0002,2]
[368040967,1751003444085,-519.19,0.0002,2]
[368040968,1751003444094,-460.0,0.0002,2]
[368040969,1751003444104,-460.0,0.0002,2]